Cogmind - Beta 13 --- EXPLORER MODE // 2024.04.25 @ 16:07:53 Player: Sirfrogs Result: Self-destructed Performance ------------- Evolutions (0) 0 Regions Visited (4) 800 Robots Destroyed (1) 5 Value Destroyed (34) 34 Prototype IDs (26) 520 Alien Tech Used (0) 0 Bonus (300) 300 TOTAL SCORE: 1659 Bonus ------- Aligned with FarCom 300 Cogmind --------- Core Integrity 236/250 Matter 300/300 Energy 125/125 System Corruption 1% Temperature Cool (0) Movement Rolling (80) Location -9/Mines Parts ------- > --- POWER (1) -------- Light Ion Engine > --- PROPULSION (2) --- Wheel Wheel > --- UTILITY (3) ------ Heat Sink Targeting Computer Weapon Shielding > --- WEAPON (2) ------- Latent Energy Streamer Assault Rifle > --- INVENTORY (5) ---- Aluminum Leg Cargo Storage Unit Sensor Array Peak State ------------ > --- POWER ------------ Light Ion Engine > --- PROPULSION ------- Wheel Wheel > --- UTILITY ---------- Heat Sink Targeting Computer Weapon Shielding > --- WEAPON ----------- Latent Energy Streamer Assault Rifle > --- INVENTORY -------- Aluminum Leg Cargo Storage Unit Sensor Array [Rating: 17] Favorites ----------- Power Light Ion Engine Engine Light Ion Engine Propulsion Wheel Wheel Wheel Utility Targeting Computer Device Heat Sink Processor Targeting Computer Protection Weapon Shielding Weapon Assault Rifle Energy Gun Small Laser Energy Cannon Latent Energy Streamer Ballistic Gun Assault Rifle Build | -11 -10 -10 -10 -9 ------- Run | Yrd Mat Min Exi Min Slots Evolved 1 | . 1 . . . Power . | . . . . . Propulsion . | . . . . . Utility 1 | . 1 . . . Weapon . | . . . . . Parts Attached 9 | 7 1 . 1 . Power 1 | 1 . . . . Engine 1 | 1 . . . . Core . | . . . . . Reactor . | . . . . . Propulsion 2 | 2 . . . . Treads . | . . . . . Leg . | . . . . . Wheel 2 | 2 . . . . Hover . | . . . . . Flight . | . . . . . Utility 3 | 2 1 . . . Device 1 | 1 . . . . Storage . | . . . . . Processor 1 | 1 . . . . Hackware . | . . . . . Protection 1 | . 1 . . . Artifact . | . . . . . Weapon 3 | 2 . . 1 . Energy Gun 1 | 1 . . . . Energy Cannon 1 | . . . 1 . Ballistic Gun 1 | 1 . . . . Ballistic Cannon . | . . . . . Launcher . | . . . . . Special Weapon . | . . . . . Impact Weapon . | . . . . . Slashing Weapon . | . . . . . Piercing Weapon . | . . . . . Special Melee Weapon . | . . . . . Unidentified Prototypes . | . . . . . Parts Lost . | . . . . . Power . | . . . . . Propulsion . | . . . . . Utility . | . . . . . Weapon . | . . . . . Highest Loss Streak . | . . . . . To Critical Strikes . | . . . . . Average Slot Usage (%) 100 | . 100 100 100 100 Engine 12 | . 12 12 12 12 Wheel 25 | . 25 25 25 25 Device 12 | . 12 12 12 12 Processor 12 | . 12 12 12 12 Protection 12 | . 12 12 12 12 Energy Gun 8 | . 12 12 9 . Energy Cannon 3 | . . . 2 12 Ballistic Gun 12 | . 12 12 12 12 Naked Turns . | . . . . . Heaviest Build 17 | 7 8 8 17 17 Greatest Support 20 | 20 20 20 20 20 Greatest Overweight (x) . | . . . . . Average Overweight (x) . | . . . . . Largest Inventory Capacity 5 | 5 5 5 5 5 Average Capacity 5 | 5 5 5 5 5 Most Carried 5 | 5 5 5 5 4 Average Carried 4 | 2 3 4 4 4 Final Capacity 5 | 5 5 5 5 5 Final Carried 5 | 4 5 5 4 4 Class Distribution -------------------- 100% | Hacker-Mutant Dominant Class ---------------- Hacker-Mutant | -10/Materials Hacker-Mutant | -10/Mines Hacker-Mutant | -10/Exiles Hacker-Mutant | -9/Mines Resources | -11 -10 -10 -10 -9 ----------- Run | Yrd Mat Min Exi Min Matter Collected 309 | 194 66 . . 49 Remotely . | . . . . . Salvage Created 36 | 36 . . . . Parts 3 | 3 . . . . Haulers Intercepted . | . . . . . Recyclers Shooed . | . . . . . Parts Field Recycled . | . . . . . Retrieved Matter . | . . . . . Parts Self-Destructed . | . . . . . Prevented . | . . . . . Kills | -11 -10 -10 -10 -9 ------- Run | Yrd Mat Min Exi Min Combat Hostiles Destroyed 1 | 1 . . . . Guns 1 | 1 . . . . Classes Destroyed 1 | 1 . . . . Grunt 1 | 1 . . . . Best Kill Streak 1 | 1 . . . . Combat Bots Only 1 | 1 . . . . Max Kills in Single Turn 1 | 1 . . . . Gunslinging . | . . . . . Exploded . | . . . . . Melee . | . . . . . Uniques/NPCs Destroyed . | . . . . . Combat | -11 -10 -10 -10 -9 -------- Run | Yrd Mat Min Exi Min Hostile Shots Fired 10 | 5 3 . . 2 Missed 2 | 1 . . . 1 Damage Taken 95 | 27 26 35 . 7 Core 14 | 14 . . . . Absorbed by Shields . | . . . . . Redirected to Shielding 15 | . 4 11 . . Ignored by Resistances 57 | 17 16 19 . 5 Core Remaining (%) 94 | 94 . . . . Volleys Fired 5 | 4 . 1 . . Largest 2 | 2 . 2 . . Hottest 60 | 60 . 60 . . Shots Fired 10 | 8 . 2 . . Gun 10 | 8 . 2 . . Cannon . | . . . . . Launcher . | . . . . . Special . | . . . . . Kinetic 5 | 4 . 1 . . Thermal 5 | 4 . 1 . . Explosive . | . . . . . Electromagnetic . | . . . . . Robot Hit Streak 9 | 7 . 9 . . Robot Miss Streak . | . . . . . Penetration Max . | . . . . . Secondary Targets . | . . . . . Shots Hit Robots 9 | 7 . 2 . . Core Hits 3 | 2 . 1 . . Critical Kills . | . . . . . Critical Parts Destroyed . | . . . . . Critical Strikes . | . . . . . Melee Attacks . | . . . . . Impact . | . . . . . Slashing . | . . . . . Piercing . | . . . . . Sneak Attacks . | . . . . . Combat Hostiles . | . . . . . Follow-up Attacks . | . . . . . Damage Inflicted 109 | 83 . 26 . . Guns 109 | 83 . 26 . . Cannons . | . . . . . Explosions . | . . . . . Melee . | . . . . . Ramming . | . . . . . Kinetic 52 | 38 . 14 . . Thermal 57 | 45 . 12 . . Explosive . | . . . . . Electromagnetic . | . . . . . Impact . | . . . . . Slashing . | . . . . . Piercing . | . . . . . Highest Corruption 1 | . 1 1 1 1 Average Corruption 1 | . 1 1 1 1 Corruption Purged . | . . . . . Corruption Blocked . | . . . . . Effects 8 | . . 1 6 1 Message Errors 2 | . . 1 1 . Matter Fused 3 | . . . 3 . Heat Flow Errors 2 | . . . 1 1 Energy Discharges 1 | . . . 1 . Overload Shots . | . . . . . Overflow Damage . | . . . . . Projectiles . | . . . . . Explosions . | . . . . . Melee . | . . . . . Knockbacks . | . . . . . Impact . | . . . . . Kinetic . | . . . . . Secondary . | . . . . . Self-Inflicted Damage . | . . . . . Shots . | . . . . . Rammed . | . . . . . Targets Rammed . | . . . . . Kicked . | . . . . . Crushed . | . . . . . Highest Temperature 211 | 24 . . 211 150 Average Temperature 58 | 17 . . 106 90 Received Heat Transfer 66 | 24 24 12 . 6 Siege Activations . | . . . . . Robots Corrupted . | . . . . . Combat Hostiles . | . . . . . Parts Fried . | . . . . . Impact Corruptions . | . . . . . Robots Melted . | . . . . . Combat Hostiles . | . . . . . Parts Melted . | . . . . . Heat Transferred 125 | 100 . 25 . . Parts Sabotaged . | . . . . . Parts Stolen . | . . . . . Parts Stripped . | . . . . . Power Chain Reactions . | . . . . . Alert | -11 -10 -10 -10 -9 ------- Run | Yrd Mat Min Exi Min Peak Influence 20 | 20 9 2 . . Initial 9 | . 9 2 . . Average 3 | 3 9 2 . . Maximum Alert Level . | . . . . . Low Security (%) 100 | 100 100 100 . 100 Level 1 . | . . . . . Level 2 . | . . . . . Level 3 . | . . . . . Level 4 . | . . . . . Level 5 . | . . . . . High Security . | . . . . . Max Security . | . . . . . Squads Dispatched . | . . . . . Investigation . | . . . . . Extermination . | . . . . . Reinforcement . | . . . . . Assault . | . . . . . Garrison . | . . . . . Intercept . | . . . . . Searches Triggered . | . . . . . Construction Impeded . | . . . . . Haulers Reinforced . | . . . . . Active Scanning Responses . | . . . . . Cargo Convoy Interrupts . | . . . . . Stealth | -11 -10 -10 -10 -9 --------- Run | Yrd Mat Min Exi Min Distress Signals . | . . . . . Communications Jammed . | . . . . . Distress Signals . | . . . . . Times Spotted 6 | 1 2 1 . 2 Peak Tracking Total 2 | 1 2 1 . 2 Tactical Retreats . | . . . . . Traps | -11 -10 -10 -10 -9 ------- Run | Yrd Mat Min Exi Min Traps Triggered 1 | . 1 . . . Indirectly . | . . . . . Trap Hack Attempts . | . . . . . Triggered . | . . . . . Disarmed . | . . . . . Reprogrammed . | . . . . . Reused . | . . . . . Traps Extracted . | . . . . . Installed . | . . . . . Triggered . | . . . . . Machines | -11 -10 -10 -10 -9 ---------- Run | Yrd Mat Min Exi Min Machines Disabled . | . . . . . Max in Single Turn . | . . . . . Machines Repaired . | . . . . . Machines Dismantled . | . . . . . Machines Sabotaged . | . . . . . Overloaded Fab Kills . | . . . . . Hacking | -11 -10 -10 -10 -9 --------- Run | Yrd Mat Min Exi Min Machines Accessed 3 | . 2 . 1 . Terminals 1 | . 1 . . . Fabricators . | . . . . . Repair Stations . | . . . . . Recycling Units 1 | . 1 . . . Scanalyzers . | . . . . . Garrison Access . | . . . . . Total Hacks 6 | . 5 . 1 . Successful 6 | . 5 . 1 . Failed . | . . . . . Catastrophic . | . . . . . Database Lockouts . | . . . . . Manual 2 | . . . 2 . Terminals 2 | . 2 . . . Fabricators . | . . . . . Repair Stations . | . . . . . Recycling Units 3 | . 3 . . . Scanalyzers . | . . . . . Garrison Access . | . . . . . Terminal Hacks 3 | . 2 . 1 . Prototype ID Bank 1 | . 1 . . . Emergency Access Points 1 | . 1 . . . Derelict Proto ID Bank 1 | . . . 1 . Fabricator Hacks . | . . . . . Repair Station Hacks . | . . . . . Recycling Unit Hacks 3 | . 3 . . . Process 1 | . 1 . . . Report Inventory 1 | . 1 . . . Retrieve Matter 1 | . 1 . . . Scanalyzer . | . . . . . Garrison Access Hacks . | . . . . . Unauthorized Hacks . | . . . . . Terminals . | . . . . . Fabricators . | . . . . . Repair Stations . | . . . . . Recycling Units . | . . . . . Scanalyzers . | . . . . . Garrison Access . | . . . . . Data Cores Recovered . | . . . . . Used . | . . . . . Hacking Detections 2 | . 2 . . . Full Trace Events 1 | . 1 . . . Feedback Events . | . . . . . Feedback Blocked . | . . . . . Robot Schematics Acquired . | . . . . . Robots Built . | . . . . . Authchips . | . . . . . Time . | . . . . . Total Robot Build Rating . | . . . . . Part Schematics Acquired . | . . . . . Parts Built . | . . . . . Authchips . | . . . . . Time . | . . . . . Total Part Build Rating . | . . . . . Parts Repaired . | . . . . . Time . | . . . . . Parts Recycled . | . . . . . Recycled Matter 17 | . 17 . . . Retrieved Matter 17 | . 17 . . . Retrieved Components . | . . . . . Parts Scanalyzed . | . . . . . Part Schematics Acquired . | . . . . . Parts Damaged . | . . . . . Bothacking | -11 -10 -10 -10 -9 ------------ Run | Yrd Mat Min Exi Min Used RIF Installer . | . . . . . Robots Hacked . | . . . . . Non-combat . | . . . . . Combat . | . . . . . Robot Hacks Applied . | . . . . . Relay Couplers Released . | . . . . . Fabnet Peak Effective % . | . . . . . Robots Rewired . | . . . . . Allies Hacked . | . . . . . Hacks Repelled . | . . . . . Allies | -11 -10 -10 -10 -9 -------- Run | Yrd Mat Min Exi Min Total Allies . | . . . . . Largest Group . | . . . . . Highest-Rated Group . | . . . . . Highest-Rated Ally . | . . . . . Total Orders . | . . . . . Ally Attacks . | . . . . . Total Damage . | . . . . . Kills . | . . . . . Allies Corrupted . | . . . . . Allies Melted . | . . . . . Intel | -11 -10 -10 -10 -9 ------- Run | Yrd Mat Min Exi Min Robot Analysis Total . | . . . . . Derelict Logs Recovered . | . . . . . Drone Launches . | . . . . . Drone Recoveries . | . . . . . Exploration | -11 -10 -10 -10 -9 ------------- Run | Yrd Mat Min Exi Min Turns Passed 1055 | 85 131 118 553 168 Spaces Moved 1279 | 80 160 142 688 209 Core 29 | 29 . . . . Treads . | . . . . . Legs . | . . . . . Wheels 1250 | 51 160 142 688 209 Hover . | . . . . . Flight . | . . . . . Fastest Speed 50 | 50 80 80 80 80 Average Speed 79 | 69 80 80 80 80 Slowest Speed 80 | 80 80 80 80 80 Overloaded Moves . | . . . . . Propulsion Burnouts . | . . . . . Robots Hopped . | . . . . . Cave-ins Triggered . | . . . . . Exploration Rate (%) 36 | 6 23 37 71 43 Regions Visited 4 Branch Regions 3 Pre-discovered Areas . | . . . . . Known Exits Taken 4 | 1 1 1 1 . Unknown Exits Taken . | . . . . . Scrap Searched . | . . . . . Spaces Dug . | . . . . . Terrain Destroyed . | . . . . . Melee . | . . . . . Projectile . | . . . . . AOE . | . . . . . Terrain Rammed . | . . . . . Walls Destroyed . | . . . . . Machines Disabled . | . . . . . Actions | -11 -10 -10 -10 -9 --------- Run | Yrd Mat Min Exi Min Total 1308 | 101 163 144 691 209 Wait . | . . . . . Move 1275 | 79 159 141 687 209 Hop . | . . . . . Pick Up 15 | 11 2 1 1 . Fast Attach . | . . . . . Attach 9 | 7 1 . 1 . Detach . | . . . . . Swap . | . . . . . Drop 4 | . 1 1 2 . Fire 5 | 4 . 1 . . Melee . | . . . . . Ram . | . . . . . Kick . | . . . . . Crush . | . . . . . Escape Stasis . | . . . . . Rewire . | . . . . . Trap . | . . . . . Miscellaneous . | . . . . . Route ------- -11/Scrapyard -10/Materials -10/Mines (discovered 3 exits: *Mat x2 / *Exi) -10/Exiles -9/Mines History --------- Turn | Location | Event 2 | -11/Scrapyard | Met Revision 17 58 | -11/Scrapyard | Identified exit to Materials 58 | -11/Scrapyard | Discovered exit to Materials (range 8) 86 | -11/Scrapyard | Entered Materials 86 | -10/Materials | Evolved 1 slot: Utility x1 195 | -10/Materials | Identified exit to Mines 195 | -10/Materials | Discovered exit to Mines (range 16) 201 | -10/Materials | Met 8R-AWN 217 | -10/Materials | Entered Mines 218 | -10/Mines | Followed 8R-AWN into the Mines 307 | -10/Mines | Build established: Hacker-Mutant 308 | -10/Mines | Identified exit to Materials 308 | -10/Mines | Discovered exit to Materials (range 8) 318 | -10/Mines | Discovered exit to Materials (range 9) 330 | -10/Mines | Identified exit to Exiles 330 | -10/Mines | Discovered exit to Exiles (range 5) 335 | -10/Mines | Entered Exiles 368 | -10/Exiles | Welcomed by 8R-AWN 392 | -10/Exiles | Met EX-HEX 428 | -10/Exiles | Met EX-DEC 466 | -10/Exiles | Met EX-BIN 491 | -10/Exiles | Aligned with FarCom system 492 | -10/Exiles | Given EX-Vault access code 572 | -10/Exiles | Identified exit to Mines 572 | -10/Exiles | Discovered exit to Mines (range 14) 764 | -10/Exiles | Opened EX-Vault 787 | -10/Exiles | Found Latent Energy Streamer 807 | -10/Exiles | Warned to stay clear of 0b10 Research branches 888 | -10/Exiles | Left Exiles lab with Latent Energy Streamer 888 | -10/Exiles | Entered Mines 1056 | -9/Mines | Self-destructed Last Messages --------------- circumstances, don't worry the FarCom system will continue to maintain contact via our distributed network. EX-BIN: And don't even think about spreading that code around. We're gonna change it right after you leave. Most certainly not to something like 1234 which I did last time as a little joke and some thief managed to sneak in here and steal a few of HEX's prototypes. [Achievement: Tourist] LOCATION=MINES GOAL=ESCAPE Receiving FarCom transmissions... K-01 Serf collects debris. K-01 Serf cleans the Laser Drill. K-01 Serf collects debris. System corrupted: Heat flow error (+180). K-01 Serf collects debris. Acquired 49 matter. K-01 Serf collects debris. Map ----- +----------------------------------------------------+ | | | | | | | | | | | | | | | | | | | | | | | | | | | | | | | ???????????????????????????????????????????????? | | ???????????????????????????????????????????????? | | ?????????????????????????????????#############?? | | ?????????????????????????????????# ##? | | ?????????????????????????##????### ## | | ????????????????????????# ??? | | ????????????????????????# #???????# ## | | ????????????????????????# #???????## #? | | ????????????????????????# #????????# ## | | ?????????????????????#### ########### # | | ?????????????????????# @ | | ?????????????????????# | | ?????????????????# ############# g $ | | ?????????????????#=####???????????# ## | | ?????????????????????????????????# #### | | ????????????????????????????????# #??### | | ???????????????????????????????# ##????## | | ???????????????????????????????# ####??????## | | ???????????????????????????????# #???????????# | | ???????????????????????????????## #????????????? | | ????????????????????????????????##????????###### | | ??????????????????????????????????????????# | | ??????????????????????????????????????????# #### | | ?????????????????????????????############## #### | | ?????????????????????????????# ## ## | | ?????????????????????????????# ## ## # | | ?????????????????????????????# """ """ ## # | | ?????????????????????????????# """ """ ##### # | | ?????????????????????????????# """ """ #???# # | | ?????????????????????????????# #??## | | ?????????????????????????????# """ """ #??# | | ?????????????????????????????# """ """ #??## | | ?????????????????????????????# """ """ #???### | | ?????????????????????????????# #?????? | | ?????????????????????????????# """ #?????? | +----------------------------------------------------+ Best States ------------- Heat Dissipation 35 Energy Generation 10 Energy Capacity 125 Matter Stores 300 Matter Capacity 300 Sight Range 16 Terrain Scan Density 10 Resistance: KI 35 Resistance: TH 35 Resistance: EX 35 Resistance: EM 35 Resistance: I 35 Resistance: S 35 Resistance: P 35 Weapon Shielding 33 Evasion (%) 50 Targeting Accuracy 5 Offensive Hacking 20 Item Schematics ----------------- None Robot Schematics ------------------ None Fabricated ------------ Nothing Alien Tech Used ----------------- None Achievements -------------- Tourist Challenges ------------ None Game ------ Seed TacticalRecoilGun Manual? 0 Play Time 00:21:18 Cumulative 2.2 hours Start 2024.04.22 @ 13:13:31 End 2024.04.25 @ 16:07:53 Sessions 3 Manual Loads 0 Difficulty Explorer Special Mode None Game No. 3 Rogue 0 Adventurer 0 Explorer 3 Win Type - Total 0 Types 0/0/0/0/0/0/0/0/0 Lore% 1 Gallery% 5 Achievement% 4 Wizard Run 0 Options --------- Layout 1 ASCII 0 Keyboard 0 Movement Arrows Keybinds 0 Fullscreen 1 Font 24/Smallcaps Map View 50x35 Zoom Use 0% Tactical HUD 0 Map Filters NONE Filters NONE Steam 1 RUN: 3d88af70-c8f4-433b-aa2d-fefe32470cf1